bitfinex/quotes_ETHUSD_20250908
["timestamp","ask_amount","ask_price","bid_price","bid_amount"]
[1757297529427,16.1050296,4291.2,4291.1,1e-08]
[1757297529614,16.10515446,4291.2,4291.1,1e-08]
[1757297535530,15.94205446,4291.2,4291.1,1e-08]
[1757297536700,15.94205446,4291.2,4291.1,0.46430001]
[1757297536933,15.94205446,4291.2,4291.1,1e-08]
[1757297537738,15.94205446,4291.2,4291.1,0.46430001]
[1757297538602,15.94205446,4291.2,4291.1,1e-08]
[1757297541011,15.94205446,4291.2,4291.1,0.46430001]
[1757297541723,15.94205446,4291.2,4291.1,0.30910001]
[1757297541943,15.94205446,4291.2,4291.1,1.24550001]
[1757297541944,10.24116799,4291.2,4291.1,1.24550001]
[1757297542146,11.66401238,4291.2,4291.1,1.24550001]
[1757297542445,13.99436286,4291.2,4291.1,1.24550001]
[1757297543510,11.66401238,4291.2,4291.1,1.24550001]
[1757297543910,13.99436286,4291.2,4291.1,1.24550001]
[1757297547520,11.66401238,4291.2,4291.1,1.24550001]
[1757297547734,13.99436286,4291.2,4291.1,1.24550001]
[1757297551457,13.49235904,4291.2,4291.1,1.24550001]
[1757297551682,13.49335904,4291.2,4291.1,1.24550001]
[1757297553867,11.16300856,4291.2,4291.1,1.24550001]
[1757297554149,3.885,4291.2,4291.1,1.24550001]
[1757297555570,3.885,4291.2,4291.1,7.97836481]
[1757297555873,3.885,4291.2,4291.1,3.5759048]
[1757297558041,3.885,4291.2,4291.1,7.97836481]
[1757297558663,3.885,4291.2,4291.1,3.5759048]
[1757297559750,3.884,4291.2,4291.1,7.97836481]
[1757297560362,3.884,4291.2,4291.1,8.67818997]
[1757297572974,3.884,4291.2,4291.1,8.79418997]
[1757297573575,0.001,4291.2,4291.1,8.79418997]
[1757297573794,0.001,4291.2,4291.1,11.67818997]
[1757297574101,0.001,4291.2,4291.1,11.79418997]
[1757297578605,0.001,4291.6,4291.5,2.33018758]
[1757297578805,0.001,4291.6,4291.5,13.61364759]
[1757297579010,0.001,4291.6,4291.5,15.00684759]
[1757297579823,0.001,4291.6,4291.5,15.10013128]
[1757297587340,0.001,4291.6,4291.5,10.69767127]
[1757297587633,0.001,4291.6,4291.5,15.10013128]
[1757297592836,0.001,4292.1,4292.0,2.32991612]
[1757297593041,0.001,4292.1,4292.0,13.72837613]
[1757297593353,0.001,4292.1,4292.0,15.79757613]
[1757297593670,0.001,4292.1,4292.0,15.89084155]
[1757297596439,1e-08,4292.5,4292.4,2.329699]
[1757297596639,1e-08,4292.5,4292.4,10.635456]
[1757297596850,1e-08,4292.5,4292.4,15.79735901]
[1757297597370,1e-08,4292.5,4292.4,15.89061443]
[1757297598570,0.001,4293.0,4292.9,2.32942765]
[1757297598737,0.001,4293.0,4292.9,15.80534767]
[1757297599066,0.001,4293.0,4292.9,17.19854767]
[1757297599364,0.001,4293.0,4292.9,17.29179396]
[1757297599868,0.001,4293.0,4292.9,12.88933395]
[1757297600372,0.001,4293.0,4292.9,4.60787394]
[1757297600595,0.001,4293.0,4292.9,12.88933395]
[1757297605996,0.001,4293.0,4292.9,8.51263395]
[1757297606292,0.001,4293.0,4292.9,10.81913395]
[1757297606471,0.001,4293.0,4292.9,11.28803395]
[1757297606675,0.001,4293.0,4292.9,11.59413395]
[1757297607172,0.001,4293.0,4292.9,11.28803395]
[1757297607482,0.001,4293.0,4292.9,10.81913395]
[1757297607677,0.001,4293.0,4292.9,11.28803395]
[1757297607882,0.001,4293.0,4292.9,11.59413395]
[1757297608691,0.001,4293.0,4292.9,12.08163395]
[1757297609397,0.001,4293.0,4292.9,10.81913395]
[1757297610397,0.001,4293.0,4292.9,6.41667394]
[1757297611697,0.1,4293.0,4292.9,2.42267394]
[1757297612022,0.5819,4293.0,4292.9,2.42267394]
[1757297614484,0.001,4293.0,4292.9,2.42267394]
[1757297614679,0.1,4293.0,4292.9,2.42267394]
[1757297618711,0.001,4293.0,4292.9,6.68517394]
[1757297621645,0.001,4293.0,4292.9,5.72877394]
[1757297621803,0.001,4293.0,4292.9,10.19167394]
[1757297624142,0.001,4293.0,4292.9,10.67917394]
[1757297626527,0.001,4293.0,4292.9,10.19167394]
[1757297626845,0.001,4293.0,4292.9,9.88557394]
[1757297627834,0.001,4293.0,4292.9,10.67917394]
[1757297633362,0.001,4293.0,4292.9,10.19167394]
[1757297634055,0.001,4293.0,4292.9,10.64677394]
[1757297642833,0.1641,4293.0,4292.9,9.41667394]
[1757297643171,0.1641,4293.0,4292.9,2.53867394]
[1757297643172,0.6743,4293.0,4292.9,2.53867394]
[1757297643339,0.6358,4293.0,4292.9,2.32942765]
[1757297645149,0.6743,4293.0,4292.9,2.32942765]
[1757297645645,0.6358,4293.0,4292.9,2.32942765]
[1757297647936,0.1641,4293.0,4292.9,2.32942765]
[1757297649269,0.001,4293.0,4292.9,2.32942765]
[1757297649444,0.001,4293.0,4292.9,10.41582765]
[1757297649643,0.001,4293.0,4292.9,9.82072765]
[1757297649837,0.001,4293.0,4292.9,9.37052765]
[1757297650456,0.001,4293.0,4292.9,9.82072765]
[1757297650978,0.001,4293.0,4292.9,10.12482765]
[1757297651146,0.001,4293.0,4292.9,10.57992765]
[1757297652545,0.001,4293.0,4292.9,10.12482765]
[1757297652762,0.001,4293.0,4292.9,9.82072765]
[1757297652967,0.001,4293.0,4292.9,9.37052765]
[1757297653575,0.001,4293.0,4292.9,5.49352765]
[1757297654669,0.001,4293.0,4292.9,5.94372765]
[1757297658101,0.001,4293.0,4292.9,6.24782765]
[1757297659005,0.001,4293.0,4292.9,6.70292765]
[1757297660198,0.001,4293.0,4292.9,5.49352765]
[1757297660574,0.1,4293.0,4292.9,5.49352765]
[1757297662326,0.001,4293.0,4292.9,5.49352765]
[1757297664712,0.001,4293.0,4292.9,5.94172765]
[1757297666723,0.001,4293.0,4292.9,5.49352765]
[1757297669337,0.001,4293.0,4292.9,5.94172765]
[1757297670249,0.001,4293.0,4292.9,6.24752765]
[1757297670463,0.001,4293.0,4292.9,10.64384665]
[1757297670663,0.001,4293.0,4292.9,11.12654665]
[1757297681849,0.001,4293.0,4292.9,15.00254665]
[1757297682178,0.001,4293.0,4292.9,19.39886565]
[1757297683555,0.001,4293.0,4292.9,20.30686565]
[1757297684848,0.001,4293.0,4292.9,15.91054665]
[1757297689295,0.001,4293.0,4292.9,20.30686565]
[1757297689786,0.001,4293.0,4292.9,15.91054665]
[1757297689987,0.001,4293.0,4292.9,20.30686565]
[1757297690487,0.001,4293.0,4292.9,15.91054665]
[1757297694694,0.001,4293.0,4292.9,20.30686565]
[1757297696399,0.001,4293.0,4292.9,15.91054665]
[1757297701208,0.001,4293.0,4292.9,20.30686565]
[1757297701360,0.001,4293.1,4292.9,20.30686565]
[1757297701361,0.001,4293.5,4293.4,10.51747537]
[1757297701566,0.001,4293.5,4293.4,14.39247537]
[1757297701766,0.001,4293.5,4293.4,15.73297537]
[1757297702092,0.001,4293.5,4293.4,15.36541079]
[1757297702400,0.001,4293.5,4293.4,9.93471079]
[1757297702401,0.1,4293.5,4293.4,9.93471079]
[1757297702580,0.1,4293.5,4293.4,13.80971079]
[1757297703469,0.001,4293.5,4293.4,14.28231079]
[1757297705593,0.001,4293.5,4293.4,13.80971079]
[1757297706287,0.1,4293.5,4293.4,13.80971079]
[1757297706475,0.1,4293.5,4293.4,9.41239179]
[1757297707678,0.001,4293.5,4293.4,9.41239179]
[1757297707931,0.001,4293.5,4293.4,9.88499179]
[1757297710659,0.001,4293.5,4293.4,10.63689179]
[1757297713061,0.001,4293.5,4293.4,11.42889179]
[1757297717996,0.001,4294.0,4293.9,3.12088516]
[1757297718191,0.001,4294.0,4293.9,14.53049301]
[1757297718361,0.001,4294.0,4293.9,15.73170416]
[1757297718811,0.001,4294.0,4293.9,15.82492785]
[1757297718958,1e-08,4294.4,4294.3,2.32866823]
[1757297719164,1e-08,4294.4,4294.3,13.71498723]
[1757297719364,1e-08,4294.4,4294.3,14.93948723]
[1757297719804,0.025,4294.8,4294.7,10.51677034]
[1757297719982,0.4883,4295.5,4294.8,5.32839713]
[1757297720171,1e-08,4294.9,4294.8,6.55289713]
[1757297721804,1e-08,4294.9,4294.8,5.32839713]
[1757297721975,0.09900001,4294.9,4294.8,5.32839713]
[1757297722499,1e-08,4294.9,4294.8,5.32839713]
[1757297722677,1e-08,4294.9,4294.8,6.09209713]
[1757297724977,0.00100001,4294.9,4294.8,6.09209713]
[1757297727099,0.00100001,4294.9,4294.8,5.32839713]
[1757297727299,0.16410001,4294.9,4294.8,5.32839713]
[1757297728499,0.00100001,4294.9,4294.8,5.32839713]
[1757297728699,0.00100001,4294.9,4294.8,5.79799713]
[1757297729671,0.00100001,4294.9,4294.8,6.10109713]
[1757297730091,0.00100001,4294.9,4294.8,6.55709713]
[1757297731981,0.00100001,4294.9,4294.8,7.34909713]
[1757297742195,0.00100001,4294.9,4294.8,7.34909713]
[1757297742799,0.00100001,4294.9,4294.8,7.35109713]
[1757297743795,0.00100001,4294.9,4294.8,9.99439713]
[1757297744091,0.00100001,4294.9,4294.8,10.46399713]
[1757297744320,0.00100001,4294.9,4294.8,10.76709713]
[1757297745951,0.00100001,4294.9,4294.8,10.46399713]
[1757297746547,0.00100001,4294.9,4294.8,9.99439713]
[1757297746854,0.10000001,4294.9,4294.8,9.20239713]
[1757297749557,0.10000001,4294.9,4294.8,9.20139713]
[1757297750615,0.10000001,4294.9,4294.8,5.33039713]
[1757297750832,0.10000001,4294.9,4294.8,9.20139713]
[1757297752820,0.00100001,4294.9,4294.8,9.20139713]
[1757297754743,0.00100001,4294.9,4294.8,9.64359713]
[1757297754941,0.00100001,4294.9,4294.8,9.94069713]
[1757297755618,0.00100001,4294.9,4294.8,10.43419713]
[1757297758526,0.00100001,4294.9,4294.8,9.94069713]
[1757297758722,0.00100001,4294.9,4294.8,9.20139713]
[1757297758723,0.16410001,4294.9,4294.8,9.20139713]
[1757297760626,0.00100001,4294.9,4294.8,9.20139713]
[1757297761028,0.00100001,4294.9,4294.8,5.33039713]
[1757297761359,0.00100001,4294.9,4294.8,9.20139713]
[1757297761748,0.00100001,4294.9,4294.8,5.77259713]
[1757297761926,0.00100001,4294.9,4294.8,9.64359713]
[1757297762126,0.16280001,4294.9,4294.8,9.20139713]
[1757297762925,0.00100001,4294.9,4294.8,9.20139713]
[1757297763127,0.00100001,4294.9,4294.8,9.94069713]
[1757297763455,0.00100001,4294.9,4294.8,10.43419713]
[1757297767265,0.001,4295.4,4295.3,3.12012609]
[1757297767451,0.025,4296.8,4296.2,2.32763837]
[1757297767626,0.025,4296.8,4296.5,2.32747585]
[1757297767833,0.025,4296.8,4296.6,9.19842168]
[1757297768166,0.1019,4297.4,4296.6,9.19842168]
[1757297768167,0.4803,4297.7,4296.8,2.32731334]
[1757297768461,0.5822,4297.7,4296.8,9.19831334]
[1757297768763,0.4803,4297.5,4296.8,9.19831334]
[1757297772878,0.4803,4297.5,4296.8,9.64051334]
[1757297773894,0.4803,4297.5,4296.8,9.93761334]
[1757297775774,0.4803,4297.5,4296.8,9.19831334]
[1757297776435,0.025,4297.8,4296.8,9.93761334]
[1757297776635,0.025,4297.8,4296.8,10.43111334]
[1757297777390,0.025,4297.8,4296.8,10.54711334]
[1757297777888,1e-08,4296.9,4296.8,11.33911334]
[1757297778101,1e-08,4296.9,4296.8,13.12711334]
[1757297778254,0.00100001,4296.9,4296.8,13.12711334]
[1757297785394,0.00100001,4296.9,4296.8,12.68491334]
[1757297785593,0.00100001,4296.9,4296.8,18.19973911]
[1757297786000,0.00100001,4296.9,4296.8,18.68633911]
[1757297791176,0.10000001,4296.9,4296.8,11.10031334]
[1757297791373,0.00100001,4296.9,4296.8,11.87391334]
[1757297791584,0.00100001,4296.9,4296.8,17.40773911]
[1757297792409,0.57080001,4296.9,4296.8,7.23131334]
[1757297792584,0.10000001,4296.9,4296.8,11.10031334]
[1757297793819,0.10000001,4296.9,4296.8,7.23131334]
[1757297794129,0.10000001,4296.9,4296.7,0.4803]
[1757297794130,0.67270001,4296.9,4296.7,0.4803]
[1757297794409,0.51788677,4296.8,4295.7,3.869]
[1757297794589,0.51788677,4296.8,4295.6,0.116]
[1757297794590,0.116,4296.3,4296.1,0.142]
[1757297794796,0.099,4296.2,4296.1,2.46969255]
[1757297795176,0.6717,4296.2,4296.1,2.46969255]
[1757297795512,0.099,4296.2,4296.1,2.46969255]
[1757297797016,0.00100001,4296.9,4296.8,2.32731334]
[1757297797307,0.00100001,4296.9,4296.8,2.44331334]
[1757297797486,0.00100001,4296.9,4296.8,2.32731334]
[1757297797487,0.16410001,4296.9,4296.8,2.32731334]
[1757297797809,0.63490001,4296.9,4296.8,2.32731334]
[1757297799191,0.67340001,4296.9,4296.8,2.32731334]
[1757297801009,0.63490001,4296.9,4296.8,2.32731334]
[1757297801210,0.67340001,4296.9,4296.8,2.32731334]
[1757297801888,0.63490001,4296.9,4296.8,2.32731334]
[1757297802589,0.16410001,4296.9,4296.8,2.32731334]
[1757297802824,0.00100001,4296.9,4296.8,6.71529004]
[1757297803199,0.00100001,4296.9,4296.8,7.18479004]
[1757297803595,0.00100001,4296.9,4296.8,14.47889004]
[1757297803800,0.00100001,4296.9,4296.8,14.96549004]
[1757297806608,0.00100001,4296.9,4296.8,15.75749004]
[1757297814638,0.00100001,4296.9,4296.8,15.75949004]
[1757297814824,0.001,4297.4,4297.3,2.32704256]
[1757297814995,0.001,4297.4,4297.3,13.58901926]
[1757297815197,0.001,4297.4,4297.3,14.91541926]
[1757297816231,0.1641,4297.4,4297.3,9.83101926]
[1757297816627,0.1641,4297.4,4297.3,9.31704256]
[1757297817359,0.1641,4297.4,4297.3,5.44304256]
[1757297817555,0.6583,4297.4,4297.3,2.32704256]
[1757297819836,0.6583,4297.4,4297.2,0.09315335]
[1757297820044,0.0385,4297.3,4297.2,0.09315335]
[1757297820243,0.656,4297.3,4296.9,2.32724288]
[1757297820438,0.116,4297.1,4296.9,2.32724288]
[1757297820653,0.116,4297.1,4297.0,2.32720502]
[1757297820853,0.2791,4297.1,4297.0,2.32720502]
[1757297821265,0.7733,4297.1,4297.0,2.32720502]
[1757297822461,0.7348,4297.1,4297.0,2.32720502]
[1757297823765,0.2791,4297.1,4297.0,2.32720502]
[1757297824474,0.001,4297.4,4297.0,2.32720502]
[1757297824475,0.001,4297.4,4297.3,2.32704256]
[1757297824774,0.001,4297.4,4297.3,6.71501926]
[1757297824983,0.001,4297.4,4297.3,7.46841926]
[1757297825534,0.001,4297.4,4297.3,10.46841926]
[1757297825740,0.001,4297.4,4297.3,10.58441926]
[1757297826073,0.001,4297.4,4297.3,9.83101926]
[1757297826767,0.001,4297.4,4297.3,10.58441926]
[1757297826973,0.001,4297.4,4297.3,11.04141926]
[1757297827371,0.001,4297.4,4297.3,9.83101926]
[1757297828091,0.001,4297.4,4297.3,10.58441926]
[1757297828236,0.001,4297.4,4297.3,9.83101926]
[1757297828959,0.1,4297.4,4297.3,5.32704256]
[1757297830594,0.1,4297.4,4297.3,9.71501926]
[1757297831138,0.001,4297.4,4297.3,9.71501926]
[1757297832249,0.001,4297.4,4297.3,10.92541926]
[1757297832766,0.001,4297.4,4297.3,11.04141926]
[1757297835470,0.001,4297.4,4297.3,15.42939596]
[1757297836602,0.001,4297.4,4297.3,11.04141926]
[1757297839013,0.001,4297.4,4297.3,15.42939596]
[1757297839673,0.001,4297.4,4297.3,11.04141926]
[1757297839890,0.001,4297.4,4297.3,15.42939596]
[1757297840914,0.001,4297.4,4297.3,11.04141926]
[1757297841113,0.001,4297.4,4297.3,15.42939596]
[1757297846693,0.1641,4297.4,4297.3,5.44304256]
[1757297846880,0.1641,4297.4,4297.3,9.83101926]
[1757297847081,0.001,4297.4,4297.3,13.70501926]
[1757297847982,0.001,4297.4,4297.3,14.48451926]
[1757297848284,0.001,4297.4,4297.3,14.94741926]
[1757297848482,0.001,4297.4,4297.3,14.46531926]
[1757297849838,0.001,4297.4,4297.3,14.94741926]
[1757297851929,0.001,4297.4,4297.3,14.16791926]
[1757297852331,0.001,4297.4,4297.3,13.70501926]
[1757297853231,0.001,4297.4,4297.3,13.70301926]
[1757297853615,0.1,4297.4,4297.3,9.31504256]
[1757297853825,0.1,4297.4,4297.3,13.70301926]
[1757297854411,0.1,4297.4,4297.3,9.31504256]
[1757297857140,0.001,4297.4,4297.3,9.31504256]
[1757297857622,0.001,4297.4,4297.3,9.77794256]
[1757297858833,0.001,4297.4,4297.3,5.90594256]
[1757297859037,0.001,4297.4,4297.3,9.77694256]
[1757297860550,0.001,4297.4,4297.3,9.61144256]
[1757297860738,0.001,4297.4,4297.3,10.07434256]
[1757297863962,0.001,4297.4,4297.3,10.55644256]
[1757297865219,0.021,4297.9,4297.8,10.85485937]
[1757297865419,0.021,4297.9,4297.8,9.19677183]
[1757297865619,0.021,4297.9,4297.8,14.84085937]
[1757297867962,0.021,4297.9,4297.8,15.60115937]
[1757297868357,0.021,4297.9,4297.8,14.84085937]
[1757297868945,0.021,4297.9,4297.8,14.83985937]
[1757297869148,0.12,4297.9,4297.8,14.83985937]
[1757297870852,0.12,4297.9,4297.8,10.97085937]
[1757297871059,0.6089,4297.9,4297.8,2.32677183]
[1757297872563,0.12,4297.9,4297.8,2.32677183]
[1757297874276,0.021,4297.9,4297.8,2.78227183]
[1757297877804,0.12,4297.9,4297.8,2.32677183]
[1757297879802,0.021,4297.9,4297.8,8.61075937]
[1757297879980,0.021,4297.9,4297.8,8.72675937]
[1757297880785,0.021,4297.9,4297.8,16.06105937]
[1757297884806,0.021,4297.9,4297.8,15.59575937]
[1757297885210,0.1841,4297.9,4297.8,14.83985937]
[1757297885717,0.021,4297.9,4297.8,14.83985937]
[1757297885878,0.021,4297.9,4297.8,15.29535937]
[1757297886273,0.021,4297.9,4297.8,15.59575937]
[1757297886475,0.021,4297.9,4297.8,11.72675937]
[1757297886810,0.021,4297.9,4297.8,15.59575937]
[1757297888327,0.6541,4297.9,4297.7,3.02547059]
[1757297888483,0.627,4297.8,4297.7,2.3268205]
[1757297888686,0.7876,4297.8,4297.7,2.3268205]
[1757297889521,0.7479,4297.8,4297.7,2.3268205]
[1757297890111,0.7479,4297.8,4297.5,3.02572444]
[1757297890112,0.7479,4297.8,4297.6,2.326878]
[1757297890311,0.7479,4297.8,4297.5,0.69879167]
[1757297890312,0.5122,4297.7,4297.5,0.69879167]
[1757297890513,0.116,4297.5,4297.3,0.002]
[1757297890826,0.1594,4297.4,4297.3,0.002]
[1757297891224,0.6728,4297.4,4297.3,0.002]
[1757297892091,0.6307,4297.4,4297.3,2.32904256]
[1757297892323,0.1594,4297.4,4297.3,2.32904256]
[1757297892491,0.116,4297.5,4297.3,0.4575]
[1757297892831,0.116,4297.5,4297.4,3.08288841]
[1757297893126,0.116,4297.5,4297.4,2.32698841]
[1757297893303,0.215,4297.5,4297.4,2.32698841]
[1757297894319,0.6234,4297.5,4297.4,2.32698841]
[1757297895828,0.6234,4297.5,4297.3,0.70082748]
[1757297896002,1.0947,4297.5,4297.3,0.002]
[1757297896326,1.0947,4297.5,4297.3,2.32903205]
[1757297896539,0.49637,4297.4,4297.3,2.32903205]
[1757297896740,0.59537,4297.4,4297.3,0.002]
[1757297896905,1.06667,4297.4,4297.3,0.002]
[1757297897232,1.16857,4297.4,4297.3,0.002]
[1757297897433,1.06667,4297.4,4297.3,0.002]
[1757297899317,3.49555841,4297.4,4297.3,0.002]
[1757297899523,7.28755841,4297.4,4297.3,0.002]
[1757297899707,8.00604777,4297.4,4297.3,0.002]
[1757297900040,8.13652984,4297.4,4297.3,0.002]
[1757297900235,8.00604777,4297.4,4297.3,0.002]
[1757297900644,8.13644953,4297.4,4297.3,0.002]
[1757297902357,8.00604777,4297.4,4297.3,0.002]
[1757297902511,11.07658776,4297.4,4297.3,0.002]
[1757297904036,11.07658776,4297.4,4296.8,0.027]
[1757297904037,3.11925918,4296.9,4296.8,1e-08]
[1757297904243,14.99167885,4296.9,4296.8,1e-08]
[1757297904543,16.18241986,4296.9,4296.8,1e-08]
[1757297905142,14.09961756,4296.4,4296.3,1e-08]
[1757297905312,14.81810692,4296.4,4296.3,1e-08]
[1757297905518,9.97971938,4296.4,4296.3,1e-08]
[1757297905825,11.99598783,4296.4,4296.3,1e-08]
[1757297906230,9.44218783,4296.4,4296.3,1e-08]
[1757297906407,8.94014574,4296.4,4296.3,1e-08]
[1757297907014,8.72369847,4296.4,4296.3,1e-08]
[1757297909957,8.82549847,4296.4,4296.3,1e-08]
[1757297910656,8.72369847,4296.4,4296.3,1e-08]
[1757297910866,15.78369847,4296.4,4296.3,1e-08]
[1757297911461,15.88549847,4296.4,4296.3,1e-08]
[1757297911627,15.78369847,4296.4,4296.3,1e-08]
[1757297912226,15.88549847,4296.4,4296.3,1e-08]
[1757297912426,17.99685321,4296.4,4296.3,1e-08]
[1757297916265,17.89505321,4296.4,4296.3,1e-08]
[1757297916438,22.28991865,4296.4,4296.3,1e-08]
[1757297917075,24.84371865,4296.4,4296.3,1e-08]
[1757297917279,24.97353578,4296.4,4296.3,1e-08]
[1757297917580,24.97353578,4296.4,4295.2,0.4457]
[1757297917581,3.11987518,4295.8,4294.1,0.4657]
[1757297917879,2.32877669,4294.1,4294.0,0.4872]
[1757297918077,2.32877669,4294.1,4294.0,0.7796]
[1757297919146,0.792,4294.2,4294.0,0.7796]
[1757297919389,0.792,4294.2,4294.0,0.2924]
[1757297919575,5.32877669,4294.1,4294.0,0.2924]
[1757297919776,6.17372255,4294.1,4294.0,1.2293]
[1757297920829,3.84494586,4294.1,4294.0,1.2293]
[1757297920951,6.17372255,4294.1,4294.0,1.2293]
[1757297922080,6.35021375,4294.1,4294.0,1.2293]
[1757297923975,6.35021375,4294.1,4294.0,0.2924]
[1757297924275,7.14221375,4294.1,4293.9,0.002]
[1757297924473,7.06792175,4294.0,4293.9,0.002]
[1757297924895,7.28742175,4294.0,4293.9,0.002]
[1757297925246,7.78604859,4294.0,4293.9,0.002]
[1757297929395,7.78329656,4294.0,4293.9,1.2313]
[1757297930160,7.78335781,4294.0,4293.9,1.2313]
[1757297930496,14.8433578,4294.0,4293.9,1.2313]
[1757297933002,14.8433578,4294.0,4293.9,0.7856]
[1757297933178,14.8433578,4294.0,4293.9,1.2233]
[1757297933179,13.83454859,4294.0,4293.9,1.2233]
[1757297933363,14.05153145,4294.0,4293.9,1.2233]
[1757297933780,11.72270053,4294.0,4293.9,1.2233]
[1757297933978,13.83454859,4294.0,4293.9,1.2233]
[1757297936705,8.50571767,4294.0,4293.9,1.2233]
[1757297938181,8.72287576,4294.0,4293.9,1.2233]
[1757297938592,11.05170668,4294.0,4293.9,1.2233]
[1757297938763,8.72287576,4294.0,4293.9,1.2233]
[1757297939197,11.05170668,4294.0,4293.9,1.2233]
[1757297939613,10.83454859,4294.0,4293.9,1.2233]
[1757297940370,8.50571767,4294.0,4293.9,1.2233]
[1757297941015,10.83454859,4294.0,4293.9,1.2233]
[1757297941222,11.05194665,4294.0,4293.9,1.2233]
[1757297941418,11.25244665,4294.0,4293.9,0.002]
[1757297941740,12.48704665,4294.0,4293.9,0.002]
[1757297942028,12.04444665,4294.0,4293.9,0.002]
[1757297945340,15.17509046,4294.0,4293.9,0.002]
[1757297945548,16.11059046,4294.0,4293.9,0.002]
[1757297946343,15.89326658,4294.0,4293.9,0.002]
[1757297946550,15.76254859,4294.0,4293.9,0.002]
[1757297947008,17.01742472,4294.0,4293.9,0.002]
[1757297947217,17.01742472,4294.0,4293.8,1e-08]
[1757297947218,8.68888516,4293.9,4293.8,1e-08]
[1757297947416,3.12110213,4293.5,4293.4,0.002]
[1757297947652,11.56627016,4293.5,4293.4,0.002]
[1757297947839,12.49937016,4293.5,4293.4,0.002]
[1757297948470,14.95137016,4293.5,4293.4,0.002]
[1757297949460,14.01827016,4293.5,4293.4,0.002]
[1757297949666,15.65300025,4293.5,4293.4,0.002]
[1757297949860,8.60323481,4293.5,4293.4,0.3122]
[1757297950060,8.60323481,4293.5,4293.4,0.7499]
[1757297950252,8.60323481,4293.5,4293.4,0.002]
[1757297950765,8.80373481,4293.5,4293.4,0.002]
[1757297952078,6.23715637,4293.4,4293.3,1e-08]
[1757297952244,6.23715637,4293.4,4293.0,0.002]
[1757297952245,3.244,4293.1,4293.0,0.002]
[1757297952556,15.50208717,4293.1,4293.0,0.002]
[1757297952752,16.34948717,4293.1,4293.0,0.002]
[1757297952952,18.61739514,4293.1,4293.0,0.002]
[1757297953154,6.97042765,4292.9,4292.8,1e-08]
[1757297953356,10.81783024,4292.9,4292.8,1e-08]
[1757297953554,11.95473024,4292.9,4292.8,1e-08]
[1757297953959,11.95402534,4292.9,4292.8,1e-08]
[1757297954151,14.22193331,4292.9,4292.8,1e-08]
[1757297954786,13.72903331,4292.9,4292.8,1e-08]
[1757297955160,14.97997781,4292.9,4292.8,1e-08]
[1757297956286,14.22193331,4292.9,4292.8,1e-08]
[1757297957174,11.97753331,4292.9,4292.8,1e-08]
[1757297957384,12.33203331,4292.9,4292.8,1e-08]
[1757297957672,10.51651016,4292.5,4291.9,0.002]
[1757297957876,15.34501601,4292.5,4291.9,0.002]
[1757297958045,16.48191601,4292.5,4291.9,0.002]
[1757297958875,3.12180755,4292.2,4291.9,0.002]
[1757297959082,7.86474384,4292.2,4291.9,0.002]
[1757297959287,11.65287068,4292.2,4291.9,0.002]
[1757297959472,13.76701294,4292.2,4292.1,1e-08]
[1757297961386,13.7655227,4292.2,4292.1,1e-08]
[1757297962151,16.2175227,4292.2,4292.1,1e-08]
[1757297964971,16.21724319,4292.2,4292.1,1e-08]
[1757297965187,9.9709704,4291.9,4291.8,1e-08]
[1757297965354,9.9709704,4291.9,4289.8,0.025]
[1757297965355,3.12267636,4290.6,4290.5,0.03100002]
[1757297965672,6.12267636,4290.6,4290.5,0.03100002]
[1757297965873,6.12267636,4290.6,4289.8,0.025]
[1757297965874,2.33105666,4289.9,4289.8,0.025]
[1757297966088,2.50145885,4289.9,4289.8,0.025]
[1757297966288,2.50145885,4289.9,4289.8,0.3124]
[1757297966667,2.50145885,4289.9,4289.8,0.7799]
[1757297967473,2.50145885,4289.9,4289.8,1.2716]
[1757297969005,3.7767002,4289.9,4289.8,1.2716]
[1757297969174,11.47616564,4289.9,4289.8,0.025]
[1757297969695,7.5680002,4289.9,4289.8,0.025]
[1757297970004,7.0813002,4289.9,4289.8,0.025]
[1757297970708,12.79983797,4289.9,4289.8,0.025]
[1757297970909,12.46033797,4289.9,4289.8,0.025]
[1757297972408,12.46033797,4289.9,4289.8,1e-08]
[1757297972609,12.46033797,4289.9,4287.9,0.4917]
[1757297972610,3.12408955,4288.0,4287.9,0.4917]
[1757297972798,3.792,4288.0,4287.9,1.2466]
[1757297972998,6.12408955,4288.0,4287.9,1.2466]
[1757297973201,0.58389461,4288.9,4287.9,1.2466]
[1757297973376,2.3317089,4288.7,4288.0,0.9592]
[1757297973580,3.792,4288.3,4288.1,0.9592]
[1757297973814,3.792,4288.3,4288.2,0.2874]
[1757297973992,3.1239264,4288.3,4288.2,1.2466]
[1757297974397,6.1239264,4288.3,4288.2,1.2466]
[1757297975818,6.1239264,4288.3,4288.2,0.2874]
[1757297976117,6.73631904,4288.3,4288.2,0.7549]
[1757297976324,6.73631904,4288.3,4288.2,0.2874]
[1757297976686,0.792,4287.8,4286.9,0.70060638]
[1757297976993,0.792,4287.8,4287.7,0.2874]
[1757297977401,0.792,4287.8,4287.7,1.2466]
[1757297977607,1.33762156,4287.8,4287.7,1.2466]
[1757297978193,3.66981989,4287.8,4287.7,0.2874]
[1757297978390,0.792,4287.3,4286.8,0.025]
[1757297978617,3.0,4288.2,4286.9,0.9592]
[1757297978618,0.792,4287.4,4286.9,0.9592]
[1757297978929,3.12447031,4287.3,4287.2,0.2874]
[1757297979132,3.6701588,4287.3,4287.2,0.2874]
[1757297979633,1.33768849,4287.3,4287.2,0.2874]
[1757297979831,1.33768849,4287.3,4287.2,1.2466]
[1757297980129,3.6701588,4287.3,4287.2,1.2466]
[1757297980306,0.792,4287.0,4286.8,0.025]
[1757297980506,0.9665587,4287.1,4286.8,0.5167]
[1757297980716,0.9665587,4287.1,4286.9,0.7791]
[1757297980919,0.54568849,4287.3,4287.0,0.9592]
[1757297981127,0.116,4286.9,4286.8,0.025]
[1757297981493,0.116,4286.9,4286.8,0.3124]
[1757297981732,0.116,4286.9,4286.8,1.2716]